Cogmind - Beta 14 @@@ ROGUE MODE // 2024.12.06 @ 03:24:00 Player: WazdakkaGutsmek Result: Self-destructed Performance ------------- Evolutions (2) 1000 Regions Visited (5) 1000 Robots Destroyed (46) 230 Value Destroyed (1373) 1373 Prototype IDs (3) 60 Alien Tech Used (0) 0 Bonus (137) 137 TOTAL SCORE: 3800 Bonus ------- High Alert Combat Kills 137 Cogmind --------- Core Integrity 342/550 Matter 36/300 Energy 100/100 System Corruption 0% Temperature Cool (0) Movement Core (350) Ox6 Location -8/Materials Parts ------- > --- POWER (1) -------- (None) > --- PROPULSION (4) --- (None) > --- UTILITY (4) ------ Large Storage Unit > --- WEAPON (2) ------- (None) > --- INVENTORY (15) --- Light Ion Engine Heavy Ion Engine Light Treads Autogun Autogun Autogun High-powered Shotgun High-powered Shotgun Improved Light Cannon Improved Light Cannon Katana Axe Peak State ------------ > --- POWER ------------ Heavy Ion Engine > --- PROPULSION ------- Light Treads Light Treads Light Treads Armored Wheel > --- UTILITY ---------- Heat Sink Large Storage Unit Hardened Light Armor Plating Reflective Plating > --- WEAPON ----------- Autogun Autogun > --- INVENTORY -------- Light Ion Engine Heavy Ion Engine Light Treads Light Treads Light Armor Plating Autogun Autogun Improved Light Cannon Improved Light Cannon Rocket Launcher Rocket Launcher Katana Axe [Rating: 21] Favorites ----------- Power Heavy Ion Engine Engine Heavy Ion Engine Propulsion Light Treads Treads Light Treads Leg Aluminum Leg Wheel Armored Wheel Flight Unit Improved Flight Unit Utility Reflective Plating Device Shield Generator Storage Small Storage Unit Protection Reflective Plating Weapon Autogun Energy Gun Medium Laser Ballistic Gun Autogun Launcher Rocket Launcher Build | -11 -10 -10 -9 -9 -8 ------- Run | Yrd Mat Min Mat Min Mat Slots Evolved 4 | . . . 2 . 2 Power . | . . . . . . Propulsion 2 | . . . 1 . 1 Utility 2 | . . . 1 . 1 Weapon . | . . . . . . Parts Attached 23 | . 6 . 3 . 14 Power 1 | . . . 1 . . Engine 1 | . . . 1 . . Core . | . . . . . . Reactor . | . . . . . . Propulsion 7 | . 3 . 1 . 3 Treads 5 | . 2 . . . 3 Leg . | . . . . . . Wheel 1 | . . . 1 . . Hover . | . . . . . . Flight 1 | . 1 . . . . Utility 7 | . 1 . 1 . 5 Device 2 | . 1 . . . 1 Storage 2 | . . . . . 2 Processor . | . . . . . . Hackware . | . . . . . . Protection 3 | . . . 1 . 2 Artifact . | . . . . . . Weapon 8 | . 2 . . . 6 Energy Gun 1 | . . . . . 1 Energy Cannon . | . . . . . . Ballistic Gun 4 | . 2 . . . 2 Ballistic Cannon . | . . . . . . Launcher 3 | . . . . . 3 Special Weapon . | . . . . . . Impact Weapon . | . . . . . . Slashing Weapon . | . . . . . . Piercing Weapon . | . . . . . . Special Melee Weapon . | . . . . . . Unidentified Prototypes 3 | . 1 . 1 . 1 Parts Lost 9 | . . . . . 9 Power 1 | . . . . . 1 Propulsion 2 | . . . . . 2 Utility 3 | . . . . . 3 Weapon 3 | . . . . . 3 Highest Loss Streak 6 | . . . . . 6 To Critical Strikes . | . . . . . . Average Slot Usage (%) 87 | . 88 100 88 100 84 Engine 10 | . 14 14 11 11 8 Treads 19 | . 7 28 22 22 22 Leg 4 | . 18 . . . . Wheel 3 | . . . . 11 7 Device 7 | . 3 14 11 11 6 Storage 10 | . 14 14 11 11 9 Protection 8 | . . . 10 11 13 Energy Gun 2 | . 9 . . . . Ballistic Gun 18 | . 18 28 22 22 16 Peak Build Rating 21 | . 10 10 18 18 21 Average Rating 14 | . 7 10 14 18 17 On Entrance 11 | 6 6 10 10 18 18 Naked Turns . | . . . . . . Heaviest Build 50 | 13 18 18 25 25 50 Greatest Support 60 | 20 40 40 40 12 60 Greatest Overweight (x) 4 | . 1 . 2 2 4 Average Overweight (x) 1 | . . . . 2 2 Largest Inventory Capacity 15 | . 8 8 8 8 15 Average Capacity 10 | . 8 8 8 8 13 Most Carried 13 | . 8 5 8 8 13 Average Carried 8 | . 5 4 5 8 11 Final Capacity 15 | 8 8 8 8 8 15 Final Carried 12 | 6 4 5 8 8 12 Class Distribution -------------------- 88% | Mutant 11% | Scavenger-Mutant Dominant Class ---------------- Mutant | -10/Materials Mutant | -10/Mines Mutant | -9/Materials Mutant | -9/Mines Mutant | -8/Materials Resources | -11 -10 -10 -9 -9 -8 ----------- Run | Yrd Mat Min Mat Min Mat Matter Collected 902 | 183 33 . 298 . 388 Remotely . | . . . . . . Salvage Created 1450 | . 94 . 394 . 962 Parts 92 | . 1 . 25 . 66 Haulers Intercepted 2 | . . . . . 2 Recyclers Shooed 3 | . . . 2 . 1 Parts Field Recycled . | . . . . . . Retrieved Matter . | . . . . . . Parts Self-Destructed . | . . . . . . Prevented . | . . . . . . Kills | -11 -10 -10 -9 -9 -8 ------- Run | Yrd Mat Min Mat Min Mat Combat Hostiles Destroyed 30 | . 2 . 6 . 22 Guns 19 | . 2 . 6 . 11 AOE 11 | . . . . . 11 Classes Destroyed 10 | . 2 . 5 . 3 Worker 3 | . . . 2 . 1 Builder 3 | . . . 1 . 2 Hauler 2 | . . . . . 2 Recycler 3 | . . . 1 . 2 Mechanic 1 | . . . . . 1 Operator 1 | . . . 1 . . Watcher 3 | . 1 . 1 . 1 Swarmer 4 | . . . . . 4 Grunt 23 | . 2 . 5 . 16 Sentry 3 | . . . 1 . 2 Best Kill Streak 15 | . 2 . 6 . 15 Combat Bots Only 10 | . 2 . 2 . 10 Max Kills in Single Turn 4 | . 1 . 1 . 4 Gunslinging . | . . . . . . Exploded 2 | . . . . . 2 Melee . | . . . . . . Uniques/NPCs Destroyed . | . . . . . . Combat | -11 -10 -10 -9 -9 -8 -------- Run | Yrd Mat Min Mat Min Mat Hostile Shots Fired 165 | . 25 . 18 . 122 Missed 58 | . 8 . 9 . 41 Damage Taken 1800 | . 162 . 85 . 1553 Core 250 | . 17 . 25 . 208 Absorbed by Shields 76 | . 15 . 36 . 25 Ignored by Resistances 78 | . . . 14 . 64 Core Remaining (%) 95 | 100 . 93 . 93 . Volleys Fired 99 | . 17 . 31 . 51 Largest 2 | . 2 . 2 . 2 Hottest 70 | . 70 . 46 . 56 Shots Fired 193 | . 34 . 62 . 97 Gun 172 | . 34 . 62 . 76 Cannon . | . . . . . . Launcher 21 | . . . . . 21 Special . | . . . . . . Kinetic 156 | . 18 . 62 . 76 Thermal 16 | . 16 . . . . Explosive 21 | . . . . . 21 Electromagnetic . | . . . . . . Robot Hit Streak 19 | . 7 . 15 . 19 Robot Miss Streak 4 | . 2 . 4 . 3 Penetration Max . | . . . . . . Secondary Targets 3 | . . . . . 3 Max Gunslinging Chain 1 | . . . . . 1 Shots Hit Robots 122 | . 22 . 40 . 60 Core Hits 90 | . 7 . 17 . 66 Critical Kills . | . . . . . . Critical Parts Destroyed . | . . . . . . Critical Strikes 1 | . 1 . . . . Burn 1 | . 1 . . . . Melee Attacks . | . . . . . . Impact . | . . . . . . Slashing . | . . . . . . Piercing . | . . . . . . Sneak Attacks . | . . . . . . Combat Hostiles . | . . . . . . Follow-up Attacks . | . . . . . . Damage Inflicted 3729 | . 243 3 614 . 2869 Guns 1680 | . 243 . 611 . 826 Cannons . | . . . . . . Explosions 2031 | . . . . . 2031 Melee . | . . . . . . Ramming 18 | . . 3 3 . 12 Kinetic 1545 | . 108 . 611 . 826 Thermal 135 | . 135 . . . . Explosive 2031 | . . . . . 2031 Electromagnetic . | . . . . . . Impact . | . . . . . . Slashing . | . . . . . . Piercing . | . . . . . . Highest Corruption 2 | . 2 2 . . . Average Corruption 1 | . 1 2 . . . Corruption Purged . | . . . . . . Corruption Blocked . | . . . . . . Effects 1 | . . 1 . . . Message Errors 1 | . . 1 . . . Overload Shots . | . . . . . . Overflow Damage 66 | . . . . . 66 Projectiles . | . . . . . . Explosions 66 | . . . . . 66 Melee . | . . . . . . Knockbacks . | . . . . . . Impact . | . . . . . . Kinetic . | . . . . . . Secondary . | . . . . . . Self-Inflicted Damage 114 | . . . 16 . 98 Shots 4 | . . . 1 . 3 Rammed 8 | . . 2 3 . 3 Targets Rammed 9 | . . 2 4 . 3 Kicked . | . . . . . . Crushed 1 | . . . 1 . . Highest Temperature 266 | . 266 . 30 . 49 Average Temperature 33 | . 76 . 10 . 11 Received Heat Transfer 650 | . 72 . 44 . 534 Siege Activations . | . . . . . . Robots Corrupted . | . . . . . . Combat Hostiles . | . . . . . . Parts Fried . | . . . . . . Impact Corruptions . | . . . . . . Robots Melted . | . . . . . . Combat Hostiles . | . . . . . . Parts Melted 1 | . 1 . . . . Heat Transferred 481 | . 481 . . . . Parts Sabotaged . | . . . . . . Parts Stolen . | . . . . . . Parts Stripped . | . . . . . . Power Chain Reactions . | . . . . . . Alert | -11 -10 -10 -9 -9 -8 ------- Run | Yrd Mat Min Mat Min Mat Peak Influence 714 | . 87 33 280 109 714 Initial 109 | . . 33 12 109 42 Average 217 | . 69 33 139 109 347 Maximum Alert Level 3 | . . . 1 . 3 Low Security (%) 61 | . 100 100 56 100 41 Level 1 15 | . . . 43 . 12 Level 2 22 | . . . . . 46 Level 3 . | . . . . . . Level 4 . | . . . . . . Level 5 . | . . . . . . High Security . | . . . . . . Max Security . | . . . . . . Squads Dispatched 9 | . 2 . 3 . 4 Investigation 2 | . 1 . 1 . . Extermination . | . . . . . . Reinforcement 7 | . 1 . 2 . 4 Assault . | . . . . . . Garrison . | . . . . . . Intercept . | . . . . . . Searches Triggered . | . . . . . . Construction Impeded 2 | . . . . . 2 Haulers Reinforced . | . . . . . . Active Scanning Responses . | . . . . . . Cargo Convoy Interrupts . | . . . . . . Stealth | -11 -10 -10 -9 -9 -8 --------- Run | Yrd Mat Min Mat Min Mat Distress Signals 5 | . 1 . 1 . 3 Communications Jammed . | . . . . . . Distress Signals . | . . . . . . Times Spotted 66 | . 16 . 12 . 38 Peak Tracking Total 9 | . 9 . 4 . 6 Tactical Retreats 3 | . . . . . 3 Traps | -11 -10 -10 -9 -9 -8 ------- Run | Yrd Mat Min Mat Min Mat Traps Triggered 4 | . 3 . 1 . . Indirectly 1 | . . . 1 . . Trap Hack Attempts . | . . . . . . Triggered . | . . . . . . Disarmed . | . . . . . . Reprogrammed . | . . . . . . Reused . | . . . . . . Traps Extracted . | . . . . . . Installed . | . . . . . . Triggered . | . . . . . . Machines | -11 -10 -10 -9 -9 -8 ---------- Run | Yrd Mat Min Mat Min Mat Machines Disabled 5 | . . . 3 . 2 Max in Single Turn 3 | . . . 3 . 1 Machines Repaired . | . . . . . . Machines Dismantled . | . . . . . . Machines Sabotaged . | . . . . . . Overloaded Fab Kills . | . . . . . . Hacking | -11 -10 -10 -9 -9 -8 --------- Run | Yrd Mat Min Mat Min Mat Machines Accessed . | . . . . . . Terminals . | . . . . . . Fabricators . | . . . . . . Repair Stations . | . . . . . . Recycling Units . | . . . . . . Scanalyzers . | . . . . . . Garrison Access . | . . . . . . Total Hacks . | . . . . . . Successful . | . . . . . . Failed . | . . . . . . Catastrophic . | . . . . . . Database Lockouts . | . . . . . . Manual . | . . . . . . Terminals . | . . . . . . Fabricators . | . . . . . . Repair Stations . | . . . . . . Recycling Units . | . . . . . . Scanalyzers . | . . . . . . Garrison Access . | . . . . . . Terminal Hacks . | . . . . . . Fabricator Hacks . | . . . . . . Repair Station Hacks . | . . . . . . Recycling Unit Hacks . | . . . . . . Scanalyzer . | . . . . . . Garrison Access Hacks . | . . . . . . Unauthorized Hacks . | . . . . . . Terminals . | . . . . . . Fabricators . | . . . . . . Repair Stations . | . . . . . . Recycling Units . | . . . . . . Scanalyzers . | . . . . . . Garrison Access . | . . . . . . Data Cores Recovered . | . . . . . . Used . | . . . . . . Hacking Detections . | . . . . . . Full Trace Events . | . . . . . . Feedback Events . | . . . . . . Feedback Blocked . | . . . . . . Robot Schematics Acquired . | . . . . . . Robots Built . | . . . . . . Authchips . | . . . . . . Time . | . . . . . . Total Robot Build Rating . | . . . . . . Part Schematics Acquired . | . . . . . . Parts Built . | . . . . . . Authchips . | . . . . . . Time . | . . . . . . Total Part Build Rating . | . . . . . . Parts Repaired . | . . . . . . Time . | . . . . . . Parts Recycled . | . . . . . . Recycled Matter . | . . . . . . Retrieved Matter . | . . . . . . Retrieved Components . | . . . . . . Parts Scanalyzed . | . . . . . . Part Schematics Acquired . | . . . . . . Parts Damaged . | . . . . . . Bothacking | -11 -10 -10 -9 -9 -8 ------------ Run | Yrd Mat Min Mat Min Mat Used RIF Installer . | . . . . . . Robots Hacked . | . . . . . . Non-combat . | . . . . . . Combat . | . . . . . . Robot Hacks Applied . | . . . . . . Relay Couplers Released . | . . . . . . Fabnet Peak Effective % . | . . . . . . Robots Rewired . | . . . . . . Allies Hacked . | . . . . . . Hacks Repelled . | . . . . . . Allies | -11 -10 -10 -9 -9 -8 -------- Run | Yrd Mat Min Mat Min Mat Total Allies . | . . . . . . Largest Group . | . . . . . . Highest-Rated Group . | . . . . . . Highest-Rated Ally . | . . . . . . Total Orders . | . . . . . . Ally Attacks . | . . . . . . Total Damage . | . . . . . . Kills . | . . . . . . Allies Corrupted . | . . . . . . Allies Melted . | . . . . . . Intel | -11 -10 -10 -9 -9 -8 ------- Run | Yrd Mat Min Mat Min Mat Robot Analysis Total . | . . . . . . Derelict Logs Recovered . | . . . . . . Drone Launches . | . . . . . . Drone Recoveries . | . . . . . . Exploration | -11 -10 -10 -9 -9 -8 ------------- Run | Yrd Mat Min Mat Min Mat Turns Passed 1453 | . 324 70 339 25 695 Spaces Moved 733 | 1 188 42 155 20 327 Core . | . . . . . . Treads 326 | . 54 42 136 . 94 Legs 135 | 1 134 . . . . Wheels 272 | . . . 19 20 233 Hover . | . . . . . . Flight . | . . . . . . Fastest Speed 120 | 120 120 160 120 120 120 Average Speed 145 | 120 134 160 155 120 147 Slowest Speed 240 | 120 190 160 160 120 240 Overloaded Moves . | . . . . . . Propulsion Burnouts . | . . . . . . Robots Hopped . | . . . . . . Cave-ins Triggered . | . . . . . . Exploration Rate (%) 19 | 2 32 10 22 10 39 Regions Visited 5 Branch Regions 2 Pre-discovered Areas 1 | . . . . 1 . Known Exits Taken . | . . . . . . Unknown Exits Taken 5 | 1 1 1 1 1 . Scrap Searched . | . . . . . . Spaces Dug . | . . . . . . Terrain Destroyed 129 | . . . . . 129 Melee . | . . . . . . Projectile . | . . . . . . AOE 129 | . . . . . 129 Terrain Rammed . | . . . . . . Walls Destroyed . | . . . . . . Machines Disabled . | . . . . . . Actions | -11 -10 -10 -9 -9 -8 --------- Run | Yrd Mat Min Mat Min Mat Total 953 | . 232 44 201 21 455 Wait 60 | . 11 . 2 2 45 Move 728 | . 187 41 154 19 327 Hop . | . . . . . . Pick Up 15 | . 3 1 5 . 6 Fast Attach 11 | . 3 . 2 . 6 Attach 3 | . 2 . . . 1 Detach 1 | . . . . . 1 Swap 9 | . 1 . 1 . 7 Drop 18 | . 8 . 2 . 8 Fire 99 | . 17 . 31 . 51 Melee . | . . . . . . Ram 2 | . . . . . 2 Kick . | . . . . . . Crush 7 | . . 2 4 . 1 Escape Stasis . | . . . . . . Rewire . | . . . . . . Trap . | . . . . . . Miscellaneous . | . . . . . . Route ------- -11/Scrapyard -10/Materials -10/Mines -9/Materials -9/Mines -8/Materials (discovered 1 exit: [*Fac]) History --------- Turn | Location | Event 1 | -11/Scrapyard | Discovered new exit (range 0) 1 | -11/Scrapyard | Entered Materials 309 | -10/Materials | Discovered new exit (range 11) 315 | -10/Materials | Build established: Mutant 325 | -10/Materials | Entered Mines 364 | -10/Mines | Discovered new exit (range 10) 374 | -10/Mines | Received a Rocket Launcher from a helpful Derelict 395 | -10/Mines | Entered Materials 395 | -9/Materials | Evolved 2 slots: Propulsion x1, Utility x1 677 | -9/Materials | Discovered new exit (range 15) 734 | -9/Materials | Entered Mines 735 | -9/Mines | Learned location of Storage (-7) 750 | -9/Mines | Discovered new exit (range 8) 759 | -9/Mines | Entered Materials 759 | -8/Materials | Evolved 2 slots: Propulsion x1, Utility x1 1129 | -8/Materials | Discovered new exit (range 13) 1210 | -8/Materials | Destroyed 10 combat bots 1422 | -8/Materials | Lost 3 parts (1p2u) 1454 | -8/Materials | Self-destructed Last Messages --------------- 01422_ U-05 Engineer lays Concrete. 01422_ Slammed into R-06 Scavenger. 01423_ U-05 Engineer lays Concrete. 01423_ R-06 Scavenger collects Imp. Heat Sink. 01424_ U-05 Engineer lays Concrete. 01429_ Autogun destroyed. 01429_ Acquired 7 matter. 01440_ Acquired 58 matter. 01442_ Rocket Launcher destroyed. 01444_ G-47 Trooper destroyed. 01444_ Lgt. Treads destroyed. 01445_ K-01 Serf collects debris. 01448_ ALERT: Construction progress impeded, dispatching reinforcements to local area. 01448_ G-47 Trooper destroyed. 01448_ R-06 Scavenger destroyed. 01449_ Hrd. Light Armor Plating destroyed. 01452_ Destroyed Aluminum Leg. 01453_ Rocket Launcher destroyed. 01453_ Lgt. Treads destroyed. Map ----- +----------------------------------------------------+ | | | | | | | | | | | | | | | | | | | | | | | | | | | ?????############?????########???????????????????? | | ????? !#?????# ! #??????????????????? | | ????? " """"" #?????# """#??????????????????? | | ?????""""""""" !#?????# """#??????????????????? | | ???????"" """ ???????? """#??????????????????? | | ????????? ??######???? ######?????????????? | | ??????#####+##### #######+## #?????????????? | | ??????# ]#?????????????? | | ??????# #?????????????? | | ########## ##### #######+## ! #?????????????? | | # #???######??## ### ###?????????????? | | ! + #############; !## #????????????? | | ! # %@% #????????????? | | # #### % #????????????? | | """ "?###### ####+#### % g #????????????? | | """ Y"# # ##[ #????????????? | | ?""" ""#" """ ##[ H #????????????? | | "!= """ #### ##????????????? | | ######### " ] """ #??? #?????????????? | | ????????##T #???## #????????????? | | ?????????#" # #????# ######??????? | | ?????????#" #+#####????# * #??????? | | ?????????#" ##??????# !#??????? | | ?????????# ##??????# [ /]#??????? | | ??????######## ##??????# # ######??????? | | ??????# ######""### =% #####??????? | | ??????# | | ??????# """ """ ! | | ??????# """ """ # | | ??????# """ """ # ########### ######### ? | | ??????# # ########?? T ????????????? | | ??????# # #?? ????????????? | | ??????# ! # ! + #?? ? ????????????? | | ??????#+######## * |# #???? """?????????????? | | ???????????????# !! # #?????????????????????? | | ???????????????# #?????????????????????? | | ???????????????# # #?????????????????????? | +----------------------------------------------------+ Best States ------------- Heat Dissipation 41 Energy Generation 14 Energy Capacity 280 Matter Stores 300 Matter Capacity 300 Sight Range 16 Terrain Scan Density 10 Armor Coverage 300 Resistance: TH 10 Evasion (%) 55 Recoil Reduction 3 Item Schematics ----------------- None Robot Schematics ------------------ None Fabricated ------------ Nothing Alien Tech Used ----------------- None Achievements -------------- None Challenges ------------ None Game ------ Seed OmegaAccelerationDatajack Manual? 0 Play Time 00:16:34 Cumulative 198.0 hours Start 2024.12.06 @ 02:47:26 End 2024.12.06 @ 03:24:00 Sessions 1 Manual Loads 0 Difficulty Rogue Special Mode None Game No. 174 Rogue 155 Adventurer 16 Explorer 3 Win Type - Total 17 Types 8/0/8/1/0/0/0/0/0 Lore% 52 Gallery% 75 Achievement% 69 Wizard Run 0 Options --------- Layout 2 ASCII 0 Keyboard 0 Movement Numpad Keybinds 1 Fullscreen 2 Font 24/Terminus Map View 50x44 Zoom Use 0% Tactical HUD 1 Map Filters NONE Filters NONE Steam 1 RUN: 523312f5-2167-4da1-baa0-9ca05588d0f8